[Event "*** Titled Tuesday Blitz"]
[Site "Chess.com"]
[Date "2021.02.09"]
[Round "8"]
[White "DrVelja"]
[Black "Fusikk"]
[Result "1-0"]
[WhiteElo "2828"]
[BlackElo "2631"]
[TimeControl "180+1"]
[EndTime "11:30:20 PST"]
[Termination "DrVelja won on time"]

1. e4 {[%clk 0:03:00.9]} 1... c6 {[%clk 0:03:00.1]} 2. c4 {[%clk 0:02:58.5]}
2... d5 {[%clk 0:02:59.2]} 3. exd5 {[%clk 0:02:59.4]} 3... cxd5 {[%clk
0:02:59.8]} 4. d4 {[%clk 0:03:00.3]} 4... Nf6 {[%clk 0:02:59.7]} 5. Nc3 {[%clk
0:02:59.1]} 5... e6 {[%clk 0:02:59.8]} 6. Nf3 {[%clk 0:02:58.8]} 6... Bb4 {[%clk
0:02:59.7]} 7. cxd5 {[%clk 0:02:52.6]} 7... Nxd5 {[%clk 0:02:59.5]} 8. Bd2
{[%clk 0:02:53.3]} 8... Nc6 {[%clk 0:02:59.4]} 9. Bd3 {[%clk 0:02:53.8]} 9...
Be7 {[%clk 0:02:58.3]} 10. O-O {[%clk 0:02:53.4]} 10... O-O {[%clk 0:02:58]} 11.
Re1 {[%clk 0:02:53.6]} 11... Bf6 {[%clk 0:02:57.8]} 12. Ne4 {[%clk 0:02:45.6]}
12... Nxd4 {[%clk 0:02:51]} 13. Nxf6+ {[%clk 0:02:38.3]} 13... Qxf6 {[%clk
0:02:51.9]} 14. Ne5 {[%clk 0:02:31.2]} 14... Nc6 {[%clk 0:02:38.7]} 15. Ng4
{[%clk 0:02:14.1]} 15... Qe7 {[%clk 0:01:51.9]} 16. Qf3 {[%clk 0:02:13]} 16...
f5 {[%clk 0:01:49.3]} 17. Ne5 {[%clk 0:02:09.2]} 17... Nxe5 {[%clk 0:01:35.2]}
18. Rxe5 {[%clk 0:02:10.1]} 18... Qf6 {[%clk 0:01:31.6]} 19. Rae1 {[%clk
0:02:01.3]} 19... Bd7 {[%clk 0:01:31.7]} 20. h4 {[%clk 0:01:39]} 20... Rae8
{[%clk 0:01:30]} 21. h5 {[%clk 0:01:35.4]} 21... Bc6 {[%clk 0:01:15.7]} 22. Qe2
{[%clk 0:01:34.7]} 22... Bd7 {[%clk 0:01:07.7]} 23. h6 {[%clk 0:01:34.5]} 23...
gxh6 {[%clk 0:01:06.4]} 24. Qh5 {[%clk 0:01:32.6]} 24... Qg6 {[%clk 0:01:02]}
25. Qh4 {[%clk 0:01:30.7]} 25... Bc6 {[%clk 0:01:00.5]} 26. f3 {[%clk
0:01:19.3]} 26... Kf7 {[%clk 0:00:45]} 27. Kf2 {[%clk 0:00:47.7]} 27... Rg8
{[%clk 0:00:43.6]} 28. g4 {[%clk 0:00:47.7]} 28... Nf6 {[%clk 0:00:29.6]} 29.
Bxh6 {[%clk 0:00:20]} 29... Bxf3 {[%clk 0:00:26.9]} 30. Kxf3 {[%clk 0:00:12.3]}
30... Nxg4 {[%clk 0:00:27]} 31. Rxf5+ {[%clk 0:00:09.6]} 31... Nf6 {[%clk
0:00:09.9]} 32. Rxf6+ {[%clk 0:00:01.9]} 32... Qxf6+ {[%clk 0:00:10.8]} 33.
Qxf6+ {[%clk 0:00:02.1]} 33... Kxf6 {[%clk 0:00:11.2]} 34. Be3 {[%clk
0:00:01.9]} 34... h5 {[%clk 0:00:10.3]} 35. Ke2 {[%clk 0:00:02.3]} 35... e5
{[%clk 0:00:10.5]} 36. Rf1+ {[%clk 0:00:03.2]} 36... Ke7 {[%clk 0:00:10.4]} 37.
Be4 {[%clk 0:00:04.1]} 37... h4 {[%clk 0:00:08.8]} 38. Bc5+ {[%clk 0:00:04.2]}
38... Ke6 {[%clk 0:00:08.2]} 39. Bxa7 {[%clk 0:00:04.2]} 39... h3 {[%clk
0:00:07.9]} 40. Bf5+ {[%clk 0:00:02.7]} 40... Kd5 {[%clk 0:00:08.3]} 41. Bxh3
{[%clk 0:00:03.6]} 41... Rg3 {[%clk 0:00:08.2]} 42. Bf5 {[%clk 0:00:03.3]} 42...
Ra8 {[%clk 0:00:07.8]} 43. Be3 {[%clk 0:00:02.3]} 43... Rxa2 {[%clk 0:00:07.7]}
44. Rd1+ {[%clk 0:00:03.2]} 44... Kc6 {[%clk 0:00:06.6]} 45. Rc1+ {[%clk
0:00:03.8]} 45... Kb5 {[%clk 0:00:05.7]} 46. Bd7+ {[%clk 0:00:04.4]} 46... Kb4
{[%clk 0:00:05.3]} 47. Bc5+ {[%clk 0:00:03.2]} 47... Kb3 {[%clk 0:00:05.7]} 48.
Be6+ {[%clk 0:00:03.1]} 48... Kxb2 {[%clk 0:00:06.1]} 49. Rd1 {[%clk 0:00:03.5]}
49... Ra6 {[%clk 0:00:04.8]} 50. Bf2 {[%clk 0:00:03.5]} 50... Rg2 {[%clk
0:00:03.8]} 51. Bc4 {[%clk 0:00:04]} 51... Rf6 {[%clk 0:00:02.9]} 52. Rf1 {[%clk
0:00:03.2]} 52... Kc3 {[%clk 0:00:03.2]} 53. Bd5 {[%clk 0:00:03.7]} 53... b5
{[%clk 0:00:01.5]} 54. Bxg2 {[%clk 0:00:03.2]} 54... b4 {[%clk 0:00:01.7]} 55.
Bd4+ {[%clk 0:00:02.2]} 55... Kc4 {[%clk 0:00:01.7]} 56. Rxf6 {[%clk 0:00:03.1]}
56... exd4 {[%clk 0:00:01.7]} 57. Bh3 {[%clk 0:00:04]} 57... Kb3 {[%clk
0:00:02.6]} 58. Be6+ {[%clk 0:00:04.8]} 58... Kb2 {[%clk 0:00:02.5]} 59. Kd3
{[%clk 0:00:05.7]} 59... b3 {[%clk 0:00:03.4]} 60. Rf2+ {[%clk 0:00:06.4]} 1-0

[Event "*** Titled Tuesday Blitz"]
[Site "Chess.com"]
[Date "2021.02.09"]
[Round "8"]
[White "Das_Virus_2020"]
[Black "FMJoseHerrera"]
[Result "0-1"]
[WhiteElo "2446"]
[BlackElo "2588"]
[TimeControl "180+1"]
[EndTime "11:30:20 PST"]
[Termination "FMJoseHerrera won by resignation"]

1. e4 {[%clk 0:03:00.9]} 1... c5 {[%clk 0:02:58.9]} 2. c3 {[%clk 0:03:00.7]}
2... Qa5 {[%clk 0:02:58.1]} 3. Na3 {[%clk 0:02:40.7]} 3... e6 {[%clk 0:02:57.1]}
4. Nc4 {[%clk 0:02:40.5]} 4... Qc7 {[%clk 0:02:56.1]} 5. Ne3 {[%clk 0:02:38.3]}
5... a6 {[%clk 0:02:55.9]} 6. d4 {[%clk 0:02:33.8]} 6... d6 {[%clk 0:02:54.7]}
7. g3 {[%clk 0:02:27.9]} 7... b6 {[%clk 0:02:52.5]} 8. Bg2 {[%clk 0:02:27.7]}
8... Bb7 {[%clk 0:02:49.7]} 9. Ne2 {[%clk 0:02:27.4]} 9... Nf6 {[%clk
0:02:46.7]} 10. d5 {[%clk 0:02:27]} 10... e5 {[%clk 0:02:44.8]} 11. a4 {[%clk
0:02:26.3]} 11... Nbd7 {[%clk 0:02:44.1]} 12. O-O {[%clk 0:02:25.1]} 12... Be7
{[%clk 0:02:43.1]} 13. Nf5 {[%clk 0:02:19.9]} 13... Bf8 {[%clk 0:02:40.2]} 14.
h3 {[%clk 0:02:18.7]} 14... g6 {[%clk 0:02:38.7]} 15. Ne3 {[%clk 0:02:15.9]}
15... Bg7 {[%clk 0:02:37.3]} 16. b4 {[%clk 0:01:54.5]} 16... O-O {[%clk
0:02:31.7]} 17. Nc4 {[%clk 0:01:51.4]} 17... cxb4 {[%clk 0:02:20.1]} 18. Qb3
{[%clk 0:01:44.6]} 18... bxc3 {[%clk 0:02:12.8]} 19. Ba3 {[%clk 0:01:42.6]}
19... Nc5 {[%clk 0:01:31.1]} 20. Qxb6 {[%clk 0:01:36.1]} 20... Qxb6 {[%clk
0:01:20.9]} 21. Nxb6 {[%clk 0:01:37]} 21... Ncxe4 {[%clk 0:01:20.1]} 22. Nxa8
{[%clk 0:01:33]} 22... Bxa8 {[%clk 0:01:21]} 23. Rac1 {[%clk 0:01:16.2]} 23...
Rc8 {[%clk 0:01:20.2]} 24. Nxc3 {[%clk 0:01:07.4]} 24... Nxc3 {[%clk 0:01:05.6]}
25. Rc2 {[%clk 0:01:01.4]} 25... Nfxd5 {[%clk 0:00:57.2]} 26. Bb2 {[%clk
0:00:59.6]} 26... e4 {[%clk 0:00:29]} 27. Rfc1 {[%clk 0:00:35.1]} 27... f5
{[%clk 0:00:25.1]} 28. Bf1 {[%clk 0:00:27.8]} 28... Bd4 {[%clk 0:00:21.9]} 29.
Bxa6 {[%clk 0:00:24.1]} 29... Rc7 {[%clk 0:00:21.3]} 30. Bf1 {[%clk 0:00:19.5]}
30... Kg7 {[%clk 0:00:21.1]} 31. Kg2 {[%clk 0:00:18.1]} 31... Kf6 {[%clk
0:00:21.4]} 32. Ba3 {[%clk 0:00:18]} 32... Ke5 {[%clk 0:00:21]} 33. a5 {[%clk
0:00:16.6]} 33... Ra7 {[%clk 0:00:20]} 34. a6 {[%clk 0:00:16.3]} 34... Bc6
{[%clk 0:00:19.3]} 35. Re1 {[%clk 0:00:11.7]} 35... Ba4 {[%clk 0:00:19.3]} 36.
Rd2 {[%clk 0:00:11.2]} 36... Nb5 {[%clk 0:00:18.2]} 37. Bb2 {[%clk 0:00:09.9]}
37... Bxb2 {[%clk 0:00:15.9]} 38. Rxb2 {[%clk 0:00:10.8]} 38... Ndc3 {[%clk
0:00:16.1]} 39. Rb4 {[%clk 0:00:09.5]} 39... Rxa6 {[%clk 0:00:16.1]} 40. f4+
{[%clk 0:00:08.6]} 40... Ke6 {[%clk 0:00:15]} 41. Bxb5 {[%clk 0:00:07.8]} 41...
Nxb5 {[%clk 0:00:14.4]} 42. Ra1 {[%clk 0:00:07.4]} 42... Nc3 {[%clk 0:00:14]}
43. Ra3 {[%clk 0:00:06.3]} 43... Rc6 {[%clk 0:00:10.1]} 44. Rd4 {[%clk
0:00:05.5]} 44... Nb5 {[%clk 0:00:09.9]} 45. Raxa4 {[%clk 0:00:05.2]} 45... Nxd4
{[%clk 0:00:10.1]} 46. Rxd4 {[%clk 0:00:06.1]} 46... Rc2+ {[%clk 0:00:10.9]} 47.
Kf1 {[%clk 0:00:06.2]} 47... d5 {[%clk 0:00:11.8]} 48. Ra4 {[%clk 0:00:06.1]}
48... Kd6 {[%clk 0:00:12.4]} 49. Ra5 {[%clk 0:00:05.9]} 49... d4 {[%clk
0:00:12.3]} 50. Rb5 {[%clk 0:00:04.8]} 50... e3 {[%clk 0:00:12.6]} 51. Re5
{[%clk 0:00:03.7]} 51... Rf2+ {[%clk 0:00:11.9]} 52. Ke1 {[%clk 0:00:03.3]}
52... Rf3 {[%clk 0:00:11.4]} 53. Ke2 {[%clk 0:00:03.1]} 53... Rxg3 {[%clk
0:00:11.9]} 54. Kd3 {[%clk 0:00:03.4]} 54... Rxh3 {[%clk 0:00:12.4]} 55. Kxd4
{[%clk 0:00:03.7]} 55... Rf3 {[%clk 0:00:11.6]} 56. Kd3 {[%clk 0:00:03.9]} 56...
Rxf4 {[%clk 0:00:11.8]} 57. Rxe3 {[%clk 0:00:04.3]} 57... h5 {[%clk 0:00:10.8]}
58. Re8 {[%clk 0:00:03.8]} 58... h4 {[%clk 0:00:10.7]} 59. Rg8 {[%clk
0:00:03.2]} 59... Rg4 {[%clk 0:00:11]} 60. Rh8 {[%clk 0:00:02.6]} 60... Ke5
{[%clk 0:00:11.6]} 0-1

[Event "*** Titled Tuesday Blitz"]
[Site "Chess.com"]
[Date "2021.02.09"]
[Round "8"]
[White "rachidhuilda"]
[Black "Problematique_99"]
[Result "1-0"]
[WhiteElo "2319"]
[BlackElo "2447"]
[TimeControl "180+1"]
[EndTime "11:30:20 PST"]
[Termination "rachidhuilda won by resignation"]

1. d4 {[%clk 0:03:00.9]} 1... Nf6 {[%clk 0:02:59.6]} 2. Bg5 {[%clk 0:03:00.4]}
2... e6 {[%clk 0:02:59.3]} 3. e4 {[%clk 0:03:00.1]} 3... h6 {[%clk 0:02:59.8]}
4. Bxf6 {[%clk 0:02:59.8]} 4... Qxf6 {[%clk 0:03:00.7]} 5. c3 {[%clk 0:02:59.9]}
5... d6 {[%clk 0:03:00.4]} 6. Nd2 {[%clk 0:03:00]} 6... Nd7 {[%clk 0:03:00.6]}
7. Bd3 {[%clk 0:03:00.5]} 7... g5 {[%clk 0:03:00]} 8. Ne2 {[%clk 0:03:00.5]}
8... Bg7 {[%clk 0:03:00.4]} 9. Ng3 {[%clk 0:03:01.1]} 9... Qe7 {[%clk
0:02:57.3]} 10. Nh5 {[%clk 0:03:00.8]} 10... Bf8 {[%clk 0:02:57.3]} 11. Qe2
{[%clk 0:02:54.1]} 11... Nf6 {[%clk 0:02:57.4]} 12. Nxf6+ {[%clk 0:02:37.2]}
12... Qxf6 {[%clk 0:02:58.3]} 13. e5 {[%clk 0:02:37.6]} 13... Qe7 {[%clk
0:02:57.9]} 14. exd6 {[%clk 0:02:26.6]} 14... cxd6 {[%clk 0:02:58.8]} 15. Bb5+
{[%clk 0:02:21.3]} 15... Bd7 {[%clk 0:02:58.3]} 16. Ne4 {[%clk 0:02:21.4]} 16...
Bg7 {[%clk 0:02:52.9]} 17. Bxd7+ {[%clk 0:02:17.2]} 17... Qxd7 {[%clk
0:02:53.1]} 18. h4 {[%clk 0:02:12.2]} 18... O-O-O {[%clk 0:02:38]} 19. hxg5
{[%clk 0:02:10]} 19... hxg5 {[%clk 0:02:38.9]} 20. O-O-O {[%clk 0:02:09.7]}
20... g4 {[%clk 0:02:32.4]} 21. Ng3 {[%clk 0:01:58]} 21... f5 {[%clk 0:02:30]}
22. Rxh8 {[%clk 0:01:52.8]} 22... Rxh8 {[%clk 0:02:29]} 23. Re1 {[%clk
0:01:52.5]} 23... Re8 {[%clk 0:02:12.3]} 24. Nxf5 {[%clk 0:01:48.7]} 24... Bf6
{[%clk 0:02:05.2]} 25. Ne3 {[%clk 0:01:45]} 25... Bg5 {[%clk 0:01:56.3]} 26.
Qxg4 {[%clk 0:01:43]} 26... Rg8 {[%clk 0:01:51.6]} 27. Qe4 {[%clk 0:01:39.5]}
27... d5 {[%clk 0:01:50.3]} 28. Qf3 {[%clk 0:01:36.8]} 28... Qh7 {[%clk
0:01:48.8]} 29. Qe2 {[%clk 0:01:07.3]} 29... Qe4 {[%clk 0:01:33.3]} 30. g3
{[%clk 0:01:05.9]} 30... Kb8 {[%clk 0:01:22.4]} 31. f3 {[%clk 0:00:44]} 31...
Qh7 {[%clk 0:01:04.2]} 32. f4 {[%clk 0:00:40.9]} 32... Bh6 {[%clk 0:01:03.7]}
33. Ng4 {[%clk 0:00:37.2]} 33... Rg6 {[%clk 0:00:56.2]} 34. Nxh6 {[%clk
0:00:31.7]} 34... Qxh6 {[%clk 0:00:54.2]} 35. Qe3 {[%clk 0:00:29]} 35... a6
{[%clk 0:00:51.5]} 36. f5 {[%clk 0:00:29.1]} 36... exf5 {[%clk 0:00:47.8]} 37.
Qxh6 {[%clk 0:00:29]} 37... Rxh6 {[%clk 0:00:48.7]} 38. Re5 {[%clk 0:00:29.4]}
38... Rh3 {[%clk 0:00:45.9]} 39. Rxf5 {[%clk 0:00:27.1]} 39... Rxg3 {[%clk
0:00:44.7]} 40. Rxd5 {[%clk 0:00:27.3]} 40... Kc7 {[%clk 0:00:44.8]} 41. a4
{[%clk 0:00:26.2]} 41... Rg2 {[%clk 0:00:44]} 42. Re5 {[%clk 0:00:24.6]} 42...
Kc6 {[%clk 0:00:44.9]} 43. c4 {[%clk 0:00:19.7]} 43... b6 {[%clk 0:00:43.9]} 44.
Re6+ {[%clk 0:00:19.6]} 44... Kc7 {[%clk 0:00:44.1]} 45. d5 {[%clk 0:00:19.3]}
45... Rg4 {[%clk 0:00:43.8]} 46. b3 {[%clk 0:00:18.9]} 46... Rg2 {[%clk
0:00:43.6]} 47. Re1 {[%clk 0:00:18.8]} 47... Rh2 {[%clk 0:00:42.5]} 48. Rd1
{[%clk 0:00:19]} 48... Kd6 {[%clk 0:00:42.9]} 49. Rd2 {[%clk 0:00:19.1]} 49...
Rh3 {[%clk 0:00:43.8]} 50. Kc2 {[%clk 0:00:19.5]} 50... Rg3 {[%clk 0:00:43.8]}
51. Re2 {[%clk 0:00:19.9]} 51... Rh3 {[%clk 0:00:44.1]} 52. Re6+ {[%clk
0:00:19.9]} 52... Kc7 {[%clk 0:00:44.8]} 53. Rc6+ {[%clk 0:00:19.9]} 53... Kb7
{[%clk 0:00:45.3]} 54. Re6 {[%clk 0:00:18.9]} 54... Kc7 {[%clk 0:00:45.8]} 55.
Re2 {[%clk 0:00:18.2]} 55... Rg3 {[%clk 0:00:45.6]} 56. Rd2 {[%clk 0:00:18.5]}
56... Kd6 {[%clk 0:00:45.8]} 57. Rd3 {[%clk 0:00:19.1]} 57... Rg2+ {[%clk
0:00:45.6]} 58. Kc3 {[%clk 0:00:19.6]} 58... Rg1 {[%clk 0:00:46.2]} 59. Re3
{[%clk 0:00:19.6]} 59... Kc5 {[%clk 0:00:41.6]} 60. Rd3 {[%clk 0:00:18.4]} 60...
Kd6 {[%clk 0:00:41.4]} 61. Kb4 {[%clk 0:00:17.5]} 61... Rb1 {[%clk 0:00:36.8]}
62. a5 {[%clk 0:00:14.7]} 62... bxa5+ {[%clk 0:00:33.9]} 63. Kxa5 {[%clk
0:00:15]} 63... Kc5 {[%clk 0:00:30.4]} 64. Kxa6 {[%clk 0:00:05.8]} 64... Ra1+
{[%clk 0:00:30.7]} 65. Kb7 {[%clk 0:00:06]} 65... Rh1 {[%clk 0:00:31.6]} 66. d6
{[%clk 0:00:06]} 66... Rh3 {[%clk 0:00:30.5]} 67. Rxh3 {[%clk 0:00:04.5]} 1-0

[Event "*** Titled Tuesday Blitz"]
[Site "Chess.com"]
[Date "2021.02.09"]
[Round "8"]
[White "swisspower96"]
[Black "Fandorine"]
[Result "0-1"]
[WhiteElo "2677"]
[BlackElo "2849"]
[TimeControl "180+1"]
[EndTime "11:30:22 PST"]
[Termination "Fandorine won by resignation"]

1. d4 {[%clk 0:03:00.9]} 1... Nf6 {[%clk 0:02:59.3]} 2. c4 {[%clk 0:03:01.3]}
2... g6 {[%clk 0:02:59]} 3. Nc3 {[%clk 0:03:01.2]} 3... Bg7 {[%clk 0:02:59.4]}
4. e4 {[%clk 0:03:01.2]} 4... d6 {[%clk 0:03:00]} 5. h3 {[%clk 0:03:01.9]} 5...
O-O {[%clk 0:03:00.6]} 6. Be3 {[%clk 0:03:02.5]} 6... Na6 {[%clk 0:02:56]} 7. g4
{[%clk 0:03:01.4]} 7... c6 {[%clk 0:02:56.2]} 8. Bg2 {[%clk 0:02:56.1]} 8... Nc7
{[%clk 0:02:53.4]} 9. Nge2 {[%clk 0:02:45.6]} 9... e5 {[%clk 0:02:48.9]} 10. Qd2
{[%clk 0:02:42.3]} 10... b5 {[%clk 0:02:44.5]} 11. cxb5 {[%clk 0:02:38.5]} 11...
cxb5 {[%clk 0:02:43.4]} 12. a3 {[%clk 0:02:37.3]} 12... Bb7 {[%clk 0:02:30.2]}
13. O-O {[%clk 0:02:33.7]} 13... a6 {[%clk 0:02:20.8]} 14. Rfd1 {[%clk 0:02:33]}
14... Ne6 {[%clk 0:02:05.8]} 15. dxe5 {[%clk 0:02:13.8]} 15... dxe5 {[%clk
0:02:04.6]} 16. Nd5 {[%clk 0:02:14.4]} 16... Rc8 {[%clk 0:01:41.3]} 17. Qb4
{[%clk 0:01:58.7]} 17... Nxd5 {[%clk 0:01:24.3]} 18. exd5 {[%clk 0:01:58.6]}
18... Nd4 {[%clk 0:01:23.2]} 19. Nxd4 {[%clk 0:00:27.1]} 19... exd4 {[%clk
0:01:23.5]} 20. Bxd4 {[%clk 0:00:27.5]} 20... Rc4 {[%clk 0:01:24.1]} 21. Bxg7
{[%clk 0:00:27.5]} 21... Rxb4 {[%clk 0:01:20.9]} 22. Bxf8 {[%clk 0:00:27.9]}
22... Rxb2 {[%clk 0:01:19.3]} 23. Bh6 {[%clk 0:00:24.8]} 23... Re2 {[%clk
0:00:34.9]} 24. Be3 {[%clk 0:00:24.1]} 24... f5 {[%clk 0:00:31.6]} 25. gxf5
{[%clk 0:00:16]} 25... gxf5 {[%clk 0:00:31.2]} 26. Rac1 {[%clk 0:00:15]} 26...
Qd6 {[%clk 0:00:28.5]} 27. Bf3 {[%clk 0:00:08.5]} 27... Rxe3 {[%clk 0:00:26.5]}
28. fxe3 {[%clk 0:00:07.5]} 28... Qg3+ {[%clk 0:00:22.3]} 29. Bg2 {[%clk
0:00:07.8]} 29... Bxd5 {[%clk 0:00:16.7]} 30. Rc2 {[%clk 0:00:03]} 30... Qxe3+
{[%clk 0:00:14.4]} 31. Kh1 {[%clk 0:00:03]} 31... Qxh3+ {[%clk 0:00:13.9]} 32.
Kg1 {[%clk 0:00:02.7]} 32... Qe3+ {[%clk 0:00:14.1]} 33. Kh1 {[%clk 0:00:02.6]}
33... Bc4 {[%clk 0:00:10.4]} 34. Rcd2 {[%clk 0:00:02.9]} 34... Kg7 {[%clk
0:00:09.5]} 35. Rd7+ {[%clk 0:00:03]} 35... Kf6 {[%clk 0:00:07.4]} 36. R1d6+
{[%clk 0:00:03.7]} 36... Kg5 {[%clk 0:00:05.8]} 37. Rg7+ {[%clk 0:00:03.9]}
37... Kf4 {[%clk 0:00:06.4]} 38. Rxh7 {[%clk 0:00:03.1]} 38... Qe1+ {[%clk
0:00:07]} 39. Kh2 {[%clk 0:00:03.3]} 39... Qe5 {[%clk 0:00:07.6]} 40. Rdh6
{[%clk 0:00:03.1]} 40... Kg5+ {[%clk 0:00:07.4]} 41. Kg1 {[%clk 0:00:03.5]}
41... Qe1+ {[%clk 0:00:07.9]} 42. Kh2 {[%clk 0:00:04.1]} 42... Qe5+ {[%clk
0:00:08.4]} 43. Kg1 {[%clk 0:00:04.7]} 43... Qc5+ {[%clk 0:00:08.7]} 44. Kh2
{[%clk 0:00:04.9]} 44... Qxa3 {[%clk 0:00:08.2]} 45. Rh5+ {[%clk 0:00:04.9]}
45... Kf6 {[%clk 0:00:08.4]} 46. R7h6+ {[%clk 0:00:04.5]} 46... Ke5 {[%clk
0:00:08.3]} 47. Rh3 {[%clk 0:00:04.3]} 47... Qc1 {[%clk 0:00:07.4]} 48. Rh8
{[%clk 0:00:04.6]} 48... Qf4+ {[%clk 0:00:07.6]} 49. Kg1 {[%clk 0:00:05.3]}
49... Qd4+ {[%clk 0:00:08.1]} 50. Kh2 {[%clk 0:00:05.8]} 50... Qf4+ {[%clk
0:00:04.4]} 51. Kg1 {[%clk 0:00:05.7]} 51... Kd6 {[%clk 0:00:04.9]} 52. R3h6+
{[%clk 0:00:05.4]} 52... Kc5 {[%clk 0:00:05.4]} 53. Rc6+ {[%clk 0:00:05.5]}
53... Kb4 {[%clk 0:00:05.5]} 54. Ra8 {[%clk 0:00:05.5]} 54... a5 {[%clk
0:00:05.2]} 55. Rca6 {[%clk 0:00:05.5]} 55... Qd4+ {[%clk 0:00:05.5]} 56. Kh2
{[%clk 0:00:05.6]} 56... Qh4+ {[%clk 0:00:06.1]} 57. Kg1 {[%clk 0:00:06]} 57...
a4 {[%clk 0:00:06.9]} 58. Rg8 {[%clk 0:00:03.9]} 58... Qd4+ {[%clk 0:00:07.3]}
59. Kh2 {[%clk 0:00:03.9]} 59... Qe5+ {[%clk 0:00:07.2]} 60. Kg1 {[%clk
0:00:03.4]} 60... f4 {[%clk 0:00:08.1]} 61. Rf8 {[%clk 0:00:03.2]} 61... Qc5+
{[%clk 0:00:07.9]} 0-1

[Event "*** Titled Tuesday Blitz"]
[Site "Chess.com"]
[Date "2021.02.09"]
[Round "8"]
[White "TeukkaSalama"]
[Black "ecwinslow"]
[Result "1/2-1/2"]
[WhiteElo "2376"]
[BlackElo "2266"]
[TimeControl "180+1"]
[EndTime "11:30:22 PST"]
[Termination "Game drawn - timeout vs insufficient material"]

1. d4 {[%clk 0:03:00.9]} 1... Nf6 {[%clk 0:02:57.9]} 2. Bf4 {[%clk 0:03:01.4]}
2... g6 {[%clk 0:02:56.6]} 3. e3 {[%clk 0:03:02.1]} 3... Bg7 {[%clk 0:02:56.9]}
4. Nf3 {[%clk 0:03:02.8]} 4... O-O {[%clk 0:02:56.7]} 5. Be2 {[%clk 0:03:03.1]}
5... d6 {[%clk 0:02:56.5]} 6. h3 {[%clk 0:03:03.7]} 6... c5 {[%clk 0:02:55]} 7.
c3 {[%clk 0:03:02.9]} 7... Be6 {[%clk 0:02:49.5]} 8. dxc5 {[%clk 0:02:58.2]}
8... dxc5 {[%clk 0:02:48.4]} 9. Nbd2 {[%clk 0:02:52.8]} 9... Qb6 {[%clk
0:02:41.3]} 10. Qc2 {[%clk 0:02:52.5]} 10... Nc6 {[%clk 0:02:31.3]} 11. O-O
{[%clk 0:02:52]} 11... Rad8 {[%clk 0:02:25.3]} 12. Rfd1 {[%clk 0:02:51.9]} 12...
Na5 {[%clk 0:02:18.6]} 13. Ng5 {[%clk 0:02:47.3]} 13... Bd5 {[%clk 0:02:12.3]}
14. e4 {[%clk 0:02:35.2]} 14... h6 {[%clk 0:02:01.9]} 15. exd5 {[%clk
0:02:04.3]} 15... hxg5 {[%clk 0:01:59.8]} 16. Bxg5 {[%clk 0:02:03.1]} 16... Rxd5
{[%clk 0:01:58.5]} 17. Be3 {[%clk 0:01:57.9]} 17... Qc7 {[%clk 0:01:51.8]} 18.
Nc4 {[%clk 0:01:53.9]} 18... Rfd8 {[%clk 0:01:48.5]} 19. Rxd5 {[%clk 0:01:50.6]}
19... Nxd5 {[%clk 0:01:46]} 20. Bd2 {[%clk 0:01:32.6]} 20... Nc6 {[%clk
0:01:43.8]} 21. Re1 {[%clk 0:01:30.5]} 21... b5 {[%clk 0:01:36.9]} 22. Ne3
{[%clk 0:01:29.9]} 22... a6 {[%clk 0:01:25.2]} 23. Bf3 {[%clk 0:01:23.6]} 23...
Nf4 {[%clk 0:01:18.9]} 24. Qe4 {[%clk 0:01:12.1]} 24... Na5 {[%clk 0:00:55.6]}
25. Bc1 {[%clk 0:01:08]} 25... Nd3 {[%clk 0:00:53.1]} 26. Rd1 {[%clk 0:01:04]}
26... c4 {[%clk 0:00:42.1]} 27. Nd5 {[%clk 0:01:00.7]} 27... Qd6 {[%clk
0:00:30.9]} 28. Nxe7+ {[%clk 0:00:59.1]} 28... Kf8 {[%clk 0:00:30]} 29. Bg5
{[%clk 0:00:46.1]} 29... Bf6 {[%clk 0:00:24.5]} 30. Bxf6 {[%clk 0:00:41.4]}
30... Qxf6 {[%clk 0:00:24.2]} 31. Nd5 {[%clk 0:00:41.5]} 31... Qe5 {[%clk
0:00:22.3]} 32. Qxe5 {[%clk 0:00:33.3]} 32... Nxe5 {[%clk 0:00:21.9]} 33. Ne3
{[%clk 0:00:33.6]} 33... Rxd1+ {[%clk 0:00:20.4]} 34. Bxd1 {[%clk 0:00:31.8]}
34... Nb7 {[%clk 0:00:20]} 35. Be2 {[%clk 0:00:30.4]} 35... Nc5 {[%clk
0:00:19.3]} 36. Kf1 {[%clk 0:00:21.4]} 36... Ned3 {[%clk 0:00:18.7]} 37. Nd1
{[%clk 0:00:20.9]} 37... Nc1 {[%clk 0:00:17.3]} 38. a3 {[%clk 0:00:18.6]} 38...
Ke7 {[%clk 0:00:15.4]} 39. Ke1 {[%clk 0:00:18.8]} 39... Kd6 {[%clk 0:00:14.8]}
40. Kd2 {[%clk 0:00:19.1]} 40... N1d3 {[%clk 0:00:14.4]} 41. g3 {[%clk
0:00:15.9]} 41... f5 {[%clk 0:00:14]} 42. f4 {[%clk 0:00:15.9]} 42... Ne4+
{[%clk 0:00:11.6]} 43. Ke3 {[%clk 0:00:12.2]} 43... Nxg3 {[%clk 0:00:11.1]} 44.
Bxd3 {[%clk 0:00:12.1]} 44... cxd3 {[%clk 0:00:11.5]} 45. Kxd3 {[%clk 0:00:13]}
45... Kc5 {[%clk 0:00:10.3]} 46. b4+ {[%clk 0:00:12.2]} 46... Kd6 {[%clk
0:00:09.3]} 47. c4 {[%clk 0:00:12.4]} 47... bxc4+ {[%clk 0:00:07.8]} 48. Kxc4
{[%clk 0:00:13.3]} 48... Nh5 {[%clk 0:00:07.8]} 49. Nf2 {[%clk 0:00:07.4]} 49...
Nxf4 {[%clk 0:00:07.6]} 50. a4 {[%clk 0:00:08]} 50... Kc6 {[%clk 0:00:07.2]} 51.
b5+ {[%clk 0:00:07.6]} 51... axb5+ {[%clk 0:00:07.9]} 52. axb5+ {[%clk
0:00:08.5]} 52... Kb6 {[%clk 0:00:08]} 53. h4 {[%clk 0:00:06]} 53... Ng2 {[%clk
0:00:07]} 54. Nd3 {[%clk 0:00:03.3]} 54... Nxh4 {[%clk 0:00:06.3]} 55. Ne5
{[%clk 0:00:04.1]} 55... g5 {[%clk 0:00:05.4]} 56. Nd7+ {[%clk 0:00:03.4]} 56...
Kc7 {[%clk 0:00:05.6]} 57. Nc5 {[%clk 0:00:03.5]} 57... f4 {[%clk 0:00:05.1]}
58. Ne6+ {[%clk 0:00:03.7]} 58... Kb6 {[%clk 0:00:03.8]} 59. Nxg5 {[%clk
0:00:04.6]} 59... f3 {[%clk 0:00:03.3]} 60. Ne4 {[%clk 0:00:04.9]} 60... Nf5
{[%clk 0:00:02.4]} 61. Kb4 {[%clk 0:00:05]} 61... Nd4 {[%clk 0:00:02]} 62. Nf2
{[%clk 0:00:05.7]} 62... Nxb5 {[%clk 0:00:01.6]} 63. Nd3 {[%clk 0:00:06.6]}
63... Nd4 {[%clk 0:00:01.6]} 64. Kc4 {[%clk 0:00:04.1]} 1/2-1/2